bitfinex-derivatives/quotes_BTCF0:USTF0_20251002
["timestamp","ask_amount","ask_price","bid_price","bid_amount"]
[1759426546255,0.85670652,119670.0,119660.0,1.64056937]
[1759426546457,0.79123221,119670.0,119660.0,2.04056937]
[1759426547054,0.75912,119670.0,119660.0,2.04056937]
[1759426547252,0.75912,119670.0,119660.0,1.0681128]
[1759426547454,0.75912,119670.0,119660.0,1.85056937]
[1759426547855,0.76760436,119670.0,119660.0,1.85056937]
[1759426548153,1.3013418,119670.0,119660.0,1.11702718]
[1759426548359,1.36941227,119670.0,119660.0,1.11702718]
[1759426549360,1.28589647,119670.0,119660.0,1.11702718]
[1759426549553,1.26295211,119670.0,119660.0,1.12641718]
[1759426550350,0.06673008,119700.0,119680.0,0.1176088]
[1759426550554,0.58496315,119700.0,119690.0,1.15365409]
[1759426550857,1.04231654,119700.0,119690.0,1.15365409]
[1759426551157,1.11038701,119700.0,119690.0,1.15365409]
[1759426551358,1.11038701,119700.0,119690.0,1.47780628]
[1759426551558,1.09592701,119700.0,119690.0,1.48931628]
[1759426551959,1.02689211,119700.0,119690.0,1.48931628]
[1759426552259,1.02785654,119700.0,119690.0,1.48931628]
[1759426552446,1.03635819,119700.0,119690.0,1.48931628]
[1759426552851,1.11888866,119700.0,119690.0,0.8295018]
[1759426553051,1.11888866,119700.0,119690.0,1.15365399]
[1759426553758,1.11888866,119700.0,119690.0,1.47780618]
[1759426554557,1.18407289,119700.0,119690.0,1.47780618]
[1759426555753,1.18407289,119700.0,119690.0,0.8295018]
[1759426555959,1.18407289,119700.0,119690.0,1.47780618]
[1759426556161,1.18407289,119700.0,119690.0,1.47780628]
[1759426556362,1.18407289,119700.0,119690.0,1.15365409]
[1759426557059,1.50822508,119700.0,119690.0,1.04575219]
[1759426557261,1.92812995,119700.0,119690.0,0.7216]
[1759426557459,1.92812995,119700.0,119690.0,1.04575219]
[1759426557670,0.1230031,119690.0,119680.0,0.3608]
[1759426557862,0.97089227,119690.0,119680.0,0.68495219]
[1759426558165,1.37089227,119690.0,119680.0,0.68495219]
[1759426558756,1.80578008,119690.0,119680.0,1.00910438]
[1759426559159,1.40578008,119690.0,119680.0,0.38517]
[1759426559456,1.40578008,119690.0,119680.0,1.03347438]
[1759426563865,1.45805016,119690.0,119680.0,1.03347438]
[1759426565362,1.43562451,119690.0,119680.0,1.03347438]
[1759426565566,1.43562451,119690.0,119680.0,0.38517]
[1759426565768,1.43562451,119690.0,119680.0,1.03347438]
[1759426567267,1.7597767,119690.0,119680.0,0.38517]
[1759426567471,0.1230088,119680.0,119670.0,0.68495219]
[1759426567776,1.00070166,119680.0,119670.0,0.3608]
[1759426567984,1.00070166,119680.0,119670.0,0.68495219]
[1759426568278,1.00070166,119680.0,119670.0,0.70932219]
[1759426569679,1.04542288,119680.0,119670.0,0.70932219]
[1759426569870,1.04430905,119680.0,119670.0,0.70932219]
[1759426570074,1.48007069,119680.0,119670.0,0.70932219]
[1759426570268,0.72127069,119680.0,119670.0,0.79259923]
[1759426570474,1.48000021,119680.0,119670.0,0.79259923]
[1759426571282,1.450147,119680.0,119670.0,0.79259923]
[1759426571477,0.691467,119680.0,119670.0,0.4686858]
[1759426571675,1.48000688,119680.0,119670.0,0.79259923]
[1759426572281,1.48000688,119680.0,119670.0,0.70908343]
[1759426572480,1.41193641,119680.0,119670.0,0.70908343]
[1759426572683,1.48000688,119680.0,119670.0,0.70908343]
[1759426573681,1.48000688,119680.0,119670.0,0.38517]
[1759426573881,1.7517373,119680.0,119670.0,0.3608]
[1759426574588,1.42782387,119680.0,119670.0,0.3608]
[1759426574885,1.42782387,119680.0,119670.0,0.38517]
[1759426575084,0.66914387,119680.0,119670.0,0.70908343]
[1759426575277,1.42790387,119680.0,119670.0,0.70908343]
[1759426576492,1.45776799,119680.0,119670.0,0.70908343]
[1759426577183,1.45776799,119680.0,119670.0,0.68471343]
[1759426577383,1.42790387,119680.0,119670.0,0.68471343]
[1759426577784,1.42778387,119680.0,119670.0,0.70908343]
[1759426578982,0.0835158,119670.0,119660.0,0.3608]
[1759426579183,0.97066621,119670.0,119660.0,0.3608]
[1759426579387,0.9930643,119670.0,119660.0,0.3608]
[1759426579782,0.1230228,119660.0,119650.0,0.38517]
[1759426579989,1.7516313,119660.0,119650.0,0.3608]
[1759426580189,1.02293542,119660.0,119650.0,0.3608]
[1759426580487,1.82537856,119660.0,119650.0,0.3608]
[1759426582187,1.52394745,119660.0,119650.0,0.3608]
[1759426582389,1.84786088,119660.0,119650.0,0.3608]
[1759426582986,0.0835298,119650.0,119640.0,0.3608]
[1759426583193,0.6692491,119650.0,119640.0,0.38517]
[1759426583394,0.99316253,119650.0,119640.0,0.38517]
[1759426583793,1.4279291,119650.0,119640.0,0.70908343]
[1759426583994,1.40555791,119650.0,119640.0,0.70908343]
[1759426584294,0.64687791,119650.0,119640.0,0.70908343]
[1759426584595,1.40547791,119650.0,119640.0,0.79262023]
[1759426584794,1.32194811,119650.0,119640.0,0.79262023]
[1759426585295,0.56334811,119650.0,119640.0,0.79262023]
[1759426585495,1.32198811,119650.0,119640.0,0.79262023]
[1759426585690,0.64687791,119650.0,119640.0,0.79262023]
[1759426585891,1.40547791,119650.0,119640.0,0.79262023]
[1759426587697,0.64687791,119650.0,119640.0,0.79262023]
[1759426587898,1.40547791,119650.0,119640.0,0.79262023]
[1759426588592,1.40547791,119650.0,119640.0,0.70908343]
[1759426590400,1.40547791,119650.0,119640.0,0.3608]
[1759426590986,1.75176253,119650.0,119640.0,0.3608]
[1759426591296,0.1231868,119640.0,119630.0,0.3608]
[1759426591496,0.97094834,119640.0,119630.0,0.3608]
[1759426593895,1.69486177,119640.0,119630.0,0.3608]
[1759426594497,0.1231937,119630.0,119620.0,0.3608]
[1759426594699,1.72947524,119630.0,119620.0,0.3608]
[1759426595998,1.72947524,119630.0,119620.0,0.38515]
[1759426596499,0.97095524,119630.0,119620.0,0.38515]
[1759426596699,1.40560181,119630.0,119620.0,0.70906343]
[1759426597000,0.64704181,119630.0,119620.0,0.70906343]
[1759426597198,1.40560181,119630.0,119620.0,0.70906343]
[1759426598897,1.4141069,119630.0,119620.0,0.70906343]
[1759426599603,1.4141069,119630.0,119620.0,0.38515]
[1759426599807,1.73802033,119630.0,119620.0,0.3608]
[1759426600010,1.30225869,119630.0,119620.0,0.3608]
[1759426600300,1.73802033,119630.0,119620.0,0.38515]
[1759426600504,1.73806033,119630.0,119620.0,0.38515]
[1759426600705,1.4141469,119630.0,119620.0,0.38515]
[1759426601501,0.6555469,119630.0,119620.0,0.4687007]
[1759426601695,1.4141469,119630.0,119620.0,0.79261413]
[1759426601900,0.6555469,119630.0,119620.0,0.70906343]
[1759426602096,1.4141469,119630.0,119620.0,0.70906343]
[1759426602303,0.6555469,119630.0,119620.0,0.70906343]
[1759426602504,1.4141469,119630.0,119620.0,0.70906343]
[1759426602709,1.4141469,119630.0,119620.0,0.38515]
[1759426602914,1.73806033,119630.0,119620.0,0.38515]
[1759426604600,1.73806033,119630.0,119620.0,0.3608]
[1759426606217,0.6555469,119630.0,119620.0,0.3608]
[1759426606509,3.43370033,119630.0,119620.0,0.3608]
[1759426607814,0.1232007,119620.0,119610.0,0.38515]
[1759426608117,0.64704881,119620.0,119610.0,0.38515]
[1759426608313,0.97096224,119620.0,119610.0,0.38515]
[1759426608505,0.99333343,119620.0,119610.0,0.3608]
[1759426608712,3.44761343,119620.0,119610.0,0.3608]
[1759426608909,3.51300817,119620.0,119610.0,0.3608]
[1759426609115,3.18909474,119620.0,119610.0,0.3608]
[1759426609314,3.51300817,119620.0,119610.0,0.3608]
[1759426609913,1.05872817,119620.0,119610.0,0.3608]
[1759426610113,3.4450177,119620.0,119610.0,0.3608]
[1759426610313,3.51308817,119620.0,119610.0,0.3608]
[1759426610712,0.0835577,119610.0,119600.0,7.516e-05]
[1759426611017,0.64705581,119610.0,119600.0,0.38522516]
[1759426611216,0.64705581,119610.0,119600.0,0.70913859]
[1759426611516,0.64705581,119610.0,119600.0,0.38522516]
[1759426613921,0.669427,119610.0,119600.0,0.38522516]
[1759426616118,0.99334043,119610.0,119600.0,0.38522516]
[1759426616322,0.99334043,119610.0,119600.0,0.36087516]
[1759426616622,0.669427,119610.0,119600.0,0.36087516]
[1759426616816,0.99334043,119610.0,119600.0,0.36087516]
[1759426617818,1.71725386,119610.0,119600.0,7.516e-05]
[1759426618025,1.72474679,119610.0,119600.0,7.516e-05]
[1759426618518,4.17930679,119610.0,119600.0,7.516e-05]
[1759426618719,4.22402801,119610.0,119600.0,7.516e-05]
[1759426618915,3.57620115,119610.0,119600.0,7.516e-05]
[1759426619223,4.22402801,119610.0,119600.0,7.516e-05]
[1759426620216,4.20401201,119610.0,119600.0,7.516e-05]
[1759426620512,4.22400789,119610.0,119600.0,7.516e-05]
[1759426621522,0.1227715,119590.0,119580.0,0.3608]
[1759426621714,0.9928893,119590.0,119580.0,0.3608]
[1759426621915,3.47744448,119590.0,119580.0,0.3608]
[1759426622121,3.15353105,119590.0,119580.0,0.3608]
[1759426622320,3.47744448,119590.0,119580.0,0.3608]
[1759426622520,0.1227783,119580.0,119570.0,0.3608]
[1759426622721,1.02270556,119580.0,119570.0,0.3608]
[1759426623026,3.12373165,119580.0,119570.0,0.38474]
[1759426623529,3.44764508,119580.0,119570.0,0.38474]
[1759426624020,3.42527972,119580.0,119570.0,0.38474]
[1759426625328,3.42539972,119580.0,119570.0,0.38474]
[1759426625923,0.64660629,119580.0,119570.0,0.38474]
[1759426626128,3.42547972,119580.0,119570.0,0.38474]
[1759426626931,3.10160629,119580.0,119570.0,0.38474]
[1759426627125,3.42551972,119580.0,119570.0,0.38474]
[1759426627325,3.49115695,119580.0,119570.0,0.38474]
[1759426628329,3.49115695,119580.0,119570.0,0.3608]
[1759426628530,3.16736352,119580.0,119570.0,0.38474]
[1759426628831,3.49127695,119580.0,119570.0,0.38474]
[1759426629026,3.49127695,119580.0,119570.0,0.3608]
[1759426630030,3.05551531,119580.0,119570.0,0.3608]
[1759426630230,3.49127695,119580.0,119570.0,0.3608]
[1759426630427,3.81519038,119580.0,119570.0,0.3608]
[1759426630634,0.1227851,119570.0,119560.0,0.3608]
[1759426630832,0.122792,119560.0,119550.0,0.30908809]
[1759426631028,1.72941342,119560.0,119550.0,0.30908809]
[1759426631431,1.72941342,119560.0,119530.0,0.3608]
[1759426631432,0.098076,119540.0,119530.0,0.3608]
[1759426631627,1.64142544,119540.0,119530.0,0.3608]
[1759426631937,1.70949591,119540.0,119530.0,0.3608]
[1759426632332,0.122813,119530.0,119520.0,0.36090027]
[1759426632632,0.97139874,119530.0,119520.0,0.36090027]
[1759426632832,3.42667874,119530.0,119520.0,0.36090027]
[1759426633234,3.40676536,119530.0,119520.0,0.36090027]
[1759426633436,3.40680536,119530.0,119520.0,0.36090027]
[1759426633733,3.40688536,119530.0,119520.0,0.70968052]
[1759426634135,3.40688536,119530.0,119520.0,0.38484027]
[1759426634333,3.41563628,119530.0,119520.0,0.38484027]
[1759426634538,3.48307997,119530.0,119520.0,0.38484027]
[1759426635237,3.48315997,119530.0,119520.0,0.38484027]
[1759426635637,1.02767997,119530.0,119520.0,0.38484027]
[1759426635831,3.48323997,119530.0,119520.0,0.38484027]
[1759426638739,3.48347997,119530.0,119520.0,0.38484027]
[1759426639231,3.48351997,119530.0,119520.0,0.38484027]
[1759426640535,3.15867972,119530.0,119520.0,0.38484027]
[1759426640734,3.48351997,119530.0,119520.0,0.38484027]
[1759426640936,0.70283972,119530.0,119520.0,0.38484027]
[1759426641135,3.48363997,119530.0,119520.0,0.38484027]
[1759426643142,3.48367997,119530.0,119520.0,0.38484027]
[1759426644339,3.48367997,119530.0,119520.0,1.44458077]
[1759426644340,0.18453761,119530.0,119520.0,1.44458077]
[1759426644640,0.06744369,119530.0,119520.0,1.52820067]
[1759426644842,0.75916,119530.0,119520.0,1.52820067]
[1759426645345,0.8427729,119530.0,119520.0,1.52820067]
[1759426645840,0.0836129,119530.0,119520.0,1.85304092]
[1759426646047,0.08367467,119540.0,119530.0,0.1132929]
[1759426646238,0.52399467,119540.0,119530.0,1.1237734]
[1759426646545,0.52399467,119540.0,119530.0,1.5237734]
[1759426647137,0.59079745,119540.0,119530.0,1.5237734]
[1759426647543,0.90963745,119540.0,119530.0,1.5237734]
[1759426648137,0.84283467,119540.0,119530.0,1.5237734]
[1759426648333,0.08367467,119540.0,119530.0,1.5237734]
[1759426648541,0.47763467,119540.0,119530.0,1.5237734]
[1759426648747,0.08367467,119540.0,119530.0,1.5237734]
[1759426648938,6.437e-05,119540.0,119530.0,1.5237734]
[1759426649134,0.30678437,119540.0,119530.0,1.5237734]
[1759426649439,0.39039027,119540.0,119530.0,1.5237734]
[1759426650941,0.84279027,119540.0,119530.0,1.5237734]
[1759426651541,0.87883027,119540.0,119530.0,0.4666929]
[1759426651838,0.87883027,119540.0,119530.0,0.79153315]
[1759426653945,0.84279027,119540.0,119530.0,1.1237734]
[1759426654540,0.84279027,119540.0,119530.0,1.5237734]
[1759426654737,0.84271057,119540.0,119530.0,1.5237734]
[1759426656651,0.87875057,119540.0,119530.0,0.79153195]
[1759426657051,0.86506057,119540.0,119530.0,0.79893195]
[1759426657247,0.84271057,119540.0,119530.0,1.1237722]
[1759426659142,0.84271057,119540.0,119530.0,1.5237722]
[1759426661153,0.86506057,119540.0,119530.0,1.1237722]
[1759426661352,0.87875057,119540.0,119530.0,1.1237722]
[1759426661852,0.86506057,119540.0,119530.0,1.1237722]
[1759426666159,0.86506057,119540.0,119530.0,0.7629722]
[1759426666357,0.86506057,119540.0,119530.0,1.4845722]
[1759426667550,0.87875057,119540.0,119530.0,1.4845722]
[1759426668257,0.86506057,119540.0,119530.0,1.52963361]
[1759426670155,0.87875057,119540.0,119530.0,1.52963361]
[1759426670848,0.86506057,119540.0,119530.0,1.52963361]
[1759426671048,0.51943221,119540.0,119530.0,1.52963361]
[1759426671249,1.27839221,119540.0,119530.0,1.52963361]
[1759426672661,1.29208221,119540.0,119530.0,1.52223361]
[1759426673063,1.29208221,119540.0,119530.0,1.19739336]
[1759426674154,1.29208221,119540.0,119530.0,1.19739356]
[1759426675151,1.31443221,119540.0,119530.0,0.8274919]
[1759426675458,1.31443221,119540.0,119530.0,1.15233215]
[1759426676156,0.55547221,119540.0,119530.0,1.4771724]
[1759426676362,1.31443221,119540.0,119530.0,1.4771724]
[1759426676574,1.30074221,119540.0,119530.0,1.4872324]
[1759426676862,0.51943221,119540.0,119530.0,1.4872324]
[1759426677062,1.27839221,119540.0,119530.0,1.4872324]
[1759426677959,1.27839221,119540.0,119530.0,1.54742141]
[1759426678456,0.51943221,119540.0,119530.0,1.54742141]
[1759426678661,1.27839221,119540.0,119530.0,1.54742141]
[1759426681351,1.30257221,119540.0,119530.0,1.54742141]
[1759426681558,1.31588221,119540.0,119530.0,0.88768091]
[1759426681764,1.31588221,119540.0,119530.0,1.53736141]
[1759426682263,1.21892601,119540.0,119530.0,1.54742141]
[1759426682463,0.84258937,119540.0,119530.0,1.94742141]
[1759426683154,0.84258937,119540.0,119530.0,1.62258116]
[1759426683360,0.84258937,119540.0,119530.0,1.94742141]
[1759426686264,0.85589937,119540.0,119530.0,1.93736141]
[1759426686461,0.85589937,119540.0,119530.0,1.28768091]
[1759426686760,0.85589937,119540.0,119530.0,1.93736141]
[1759426689063,0.85589937,119540.0,119530.0,1.94742141]
[1759426689262,0.85589937,119540.0,119530.0,1.93736141]
[1759426689465,0.85589937,119540.0,119530.0,1.61252116]
[1759426690867,1.29166101,119540.0,119530.0,1.61252116]
[1759426691559,1.29166101,119540.0,119530.0,1.93736141]
[1759426692262,1.29166101,119540.0,119530.0,1.61227067]
[1759426692462,1.29166101,119540.0,119530.0,1.21227067]
[1759426694768,1.27835101,119540.0,119530.0,1.22233067]
[1759426696769,1.27831101,119540.0,119530.0,1.22233067]
[1759426698366,0.03620255,119570.0,119560.0,0.0239]
[1759426698568,0.15165887,119570.0,119560.0,1.20500716]
[1759426698763,0.8424284,119570.0,119560.0,1.22003957]
[1759426698965,0.8424231,119570.0,119560.0,1.15985056]
[1759426699273,0.083581,119580.0,119570.0,0.117539]
[1759426699572,0.06807047,119580.0,119570.0,1.19627394]
[1759426699776,0.1077531,119590.0,119580.0,0.1212962]
[1759426699976,0.1077531,119590.0,119580.0,1.13127572]
[1759426699977,0.85439474,119590.0,119580.0,1.13127572]
[1759426700163,0.85439474,119590.0,119580.0,0.8517185]
[1759426700468,0.83021474,119590.0,119580.0,0.8517185]
[1759426700879,0.83021474,119590.0,119580.0,0.80668596]
[1759426701062,0.83021474,119590.0,119580.0,1.13127572]
[1759426701264,1.19460164,119590.0,119580.0,1.17627344]
[1759426702577,1.27817084,119590.0,119580.0,1.17627344]
[1759426703974,1.27817084,119590.0,119580.0,1.13127572]
[1759426705475,0.51933084,119590.0,119580.0,1.13127572]
[1759426705777,1.27805084,119590.0,119580.0,1.13127572]
[1759426708074,1.29143084,119590.0,119580.0,1.13127572]
[1759426708274,1.27805084,119590.0,119580.0,1.13127572]
[1759426713882,1.29143084,119590.0,119580.0,1.11745572]
[1759426714485,1.35950131,119590.0,119580.0,1.11745572]
[1759426714684,1.38138131,119590.0,119580.0,0.4682762]
[1759426714887,1.34612131,119590.0,119580.0,1.13006572]
[1759426719893,0.91035967,119590.0,119580.0,1.13006572]
[1759426720193,1.34612131,119590.0,119580.0,1.13006572]
[1759426721087,1.35950131,119590.0,119580.0,1.11745572]
[1759426721496,1.34612131,119590.0,119580.0,1.11745572]
[1759426721682,1.34612131,119590.0,119580.0,1.13006572]
[1759426723292,1.35950131,119590.0,119580.0,1.13006572]
[1759426723594,1.34612131,119590.0,119580.0,1.13006572]
[1759426724094,1.35950131,119590.0,119580.0,1.13006572]
[1759426724497,1.34612131,119590.0,119580.0,1.13006572]
[1759426724794,1.26255211,119590.0,119580.0,1.13006572]
[1759426725190,1.26255211,119590.0,119580.0,1.17506344]
[1759426725895,1.27593211,119590.0,119580.0,1.17506344]
[1759426726195,1.27593211,119590.0,119580.0,1.16245344]
[1759426728194,1.26255211,119590.0,119580.0,1.13006572]
[1759426728493,1.26255211,119590.0,119580.0,0.4808862]
[1759426728697,1.29781211,119590.0,119580.0,1.11745572]
[1759426729297,1.29781211,119590.0,119580.0,1.17756816]
[1759426731797,1.38138201,119590.0,119580.0,1.17756816]
[1759426731993,1.29781211,119590.0,119580.0,1.17756816]
[1759426732196,1.29781211,119590.0,119580.0,0.8529784]
[1759426732696,1.29781211,119590.0,119580.0,1.17756816]
[1759426732887,1.29781211,119590.0,119580.0,0.79286596]
[1759426733689,1.29781211,119590.0,119580.0,1.11745572]
[1759426734100,1.29781211,119590.0,119580.0,0.79286596]
[1759426734800,1.80143495,119590.0,119580.0,0.81410776]
[1759426735199,1.80143495,119590.0,119580.0,0.83637476]
[1759426735803,1.71786505,119590.0,119580.0,0.83637476]
[1759426736502,1.71786505,119590.0,119580.0,0.511785]
[1759426736704,1.71786505,119590.0,119580.0,0.83637476]
[1759426737298,1.69781211,119590.0,119580.0,0.83637476]
[1759426737503,1.78138181,119590.0,119580.0,0.81410476]
[1759426737797,1.80143109,119590.0,119580.0,0.81410476]
[1759426738993,1.80143109,119590.0,119580.0,0.83539476]
[1759426739603,1.80143109,119590.0,119580.0,0.79025596]
[1759426739804,1.71754139,119590.0,119580.0,0.79025596]
[1759426740104,1.80111079,119590.0,119580.0,0.79025596]
[1759426740503,1.04271079,119590.0,119580.0,0.79025596]
[1759426740704,1.80111079,119590.0,119580.0,0.79025596]
[1759426741999,0.52388139,119590.0,119580.0,1.12745572]
[1759426742199,0.82647047,119590.0,119580.0,1.12745572]
[1759426743905,0.06807047,119590.0,119580.0,1.12745572]
[1759426744106,0.82647047,119590.0,119580.0,1.18756816]
[1759426744305,0.82647047,119590.0,119580.0,0.53838864]
[1759426744506,0.82647047,119590.0,119580.0,1.18756816]
[1759426745000,1.26223211,119590.0,119580.0,1.18756816]
[1759426745194,1.26223211,119590.0,119580.0,0.4782762]
[1759426745400,1.26223211,119590.0,119580.0,1.12745572]
[1759426747603,1.26219211,119590.0,119580.0,1.12745572]
[1759426747908,0.50383211,119590.0,119580.0,1.12745572]
[1759426748107,1.26219211,119590.0,119580.0,1.12745572]
[1759426748412,0.50383211,119590.0,119580.0,1.12745572]
[1759426748816,1.26219211,119590.0,119580.0,1.12745572]
[1759426749215,1.28542211,119590.0,119580.0,0.4782762]
[1759426749401,1.28542211,119590.0,119580.0,1.12745572]
[1759426750009,0.84966047,119590.0,119580.0,1.12745572]
[1759426750209,1.28542211,119590.0,119580.0,1.12745572]
[1759426752410,1.28542211,119590.0,119580.0,1.12679412]
[1759426757014,1.29844211,119590.0,119580.0,1.11418412]
[1759426757518,1.29844211,119590.0,119580.0,0.4656662]
[1759426757811,1.29844211,119590.0,119580.0,1.11418412]
[1759426758815,1.31887889,119590.0,119580.0,1.11418412]
[1759426759815,1.29844211,119590.0,119580.0,1.11418412]
[1759426761416,1.29844211,119590.0,119580.0,0.4656662]
[1759426761717,1.29844211,119590.0,119580.0,1.11418412]
[1759426762215,1.31887992,119590.0,119580.0,1.11418412]
[1759426762415,1.29844211,119590.0,119580.0,1.11418412]
[1759426767932,1.29844211,119590.0,119580.0,1.17429656]
[1759426768327,2.12670911,119590.0,119580.0,0.3608]
[1759426771430,1.80245015,119590.0,119580.0,0.3608]
[1759426771637,2.12670911,119590.0,119580.0,0.3608]
[1759426773844,2.12689414,119590.0,119580.0,0.3608]
[1759426774631,2.12689414,119590.0,119580.0,0.36073564]
[1759426775040,2.4511531,119590.0,119580.0,0.36073564]
[1759426775240,0.1189834,119570.0,119560.0,0.3608]
[1759426775539,1.637244,119570.0,119560.0,0.3608]
[1759426775837,0.1189904,119560.0,119550.0,0.4443974]
[1759426776036,1.20326996,119560.0,119550.0,0.4660774]
[1759426776237,0.879011,119560.0,119550.0,0.79033636]
[1759426778232,0.879011,119560.0,119550.0,0.76865636]
[1759426778640,0.879011,119560.0,119550.0,0.4660774]
[1759426778939,0.879011,119560.0,119550.0,0.79033636]
[1759426779539,0.88753798,119560.0,119550.0,0.79033636]
[1759426779834,1.21179694,119560.0,119550.0,0.79033636]
[1759426780041,0.8442978,119560.0,119550.0,0.79033636]
[1759426780246,1.28005944,119560.0,119550.0,0.79033636]
[1759426780435,1.28005944,119560.0,119550.0,0.3608]
[1759426780739,1.68005944,119560.0,119550.0,0.3608]
[1759426781143,2.11408048,119560.0,119550.0,0.38248]
[1759426781343,2.43833944,119560.0,119550.0,0.38248]
[1759426781945,0.01328,119550.0,119540.0,0.35142021]
[1759426782142,0.01328,119550.0,119520.0,0.00010027]
[1759426782143,0.1190114,119530.0,119520.0,0.00010027]
[1759426782341,1.96157096,119530.0,119520.0,0.00010027]
[1759426782644,2.7429173,119530.0,119520.0,0.00010027]
[1759426782840,2.3429173,119530.0,119520.0,0.00010027]
[1759426783547,0.1190323,119500.0,119490.0,0.38248]
[1759426783742,1.96163186,119500.0,119490.0,0.45055047]
[1759426784546,1.96163186,119500.0,119480.0,0.38248]
[1759426784547,0.1190393,119490.0,119480.0,0.38248]
[1759426784744,0.8790599,119490.0,119480.0,0.45055047]
[1759426785140,0.8790599,119490.0,119480.0,0.77480943]
[1759426785447,1.6374199,119490.0,119480.0,0.77480943]
[1759426785835,1.64582123,119490.0,119480.0,0.77480943]
[1759426787043,1.29996094,119490.0,119480.0,0.85845573]
[1759426787248,1.29996094,119490.0,119480.0,1.19577469]
[1759426788848,1.30004094,119490.0,119480.0,1.19577469]
[1759426789748,0.54152094,119490.0,119480.0,0.54725677]
[1759426789947,1.30008094,119490.0,119480.0,1.19577469]
[1759426790139,0.54152094,119490.0,119480.0,1.19577469]
[1759426790345,1.30008094,119490.0,119480.0,1.19577469]
[1759426790549,0.54152094,119490.0,119480.0,1.19577469]
[1759426790747,1.30008094,119490.0,119480.0,1.19577469]
[1759426793142,0.02212,119490.0,119480.0,1.19577469]
[1759426793346,0.8643617,119490.0,119480.0,1.59577469]
[1759426796450,0.8644017,119490.0,119480.0,1.59577469]
[1759426798844,1.20151066,119490.0,119480.0,0.45055047]
[1759426799150,1.6372723,119490.0,119480.0,0.77480943]
[1759426800247,0.1057617,119490.0,119480.0,1.19640709]
[1759426800444,0.1057617,119490.0,119480.0,1.11275839]
[1759426800445,0.8644417,119490.0,119480.0,1.11275839]
[1759426800643,0.8644417,119490.0,119480.0,0.46424047]
[1759426800840,0.8644417,119490.0,119480.0,1.11275839]
[1759426801838,0.8644417,119490.0,119480.0,1.19640709]
[1759426802042,1.30020334,119490.0,119480.0,1.19640709]
[1759426802242,0.54152334,119490.0,119480.0,1.19640709]
[1759426802545,1.30020334,119490.0,119480.0,1.19640709]
[1759426804655,0.8423217,119490.0,119480.0,1.59640709]
[1759426805543,0.0836417,119490.0,119480.0,1.59640709]
[1759426805752,0.8423217,119490.0,119480.0,1.59640709]
[1759426809156,0.8647617,119490.0,119480.0,0.94788917]
[1759426809363,0.8647617,119490.0,119480.0,1.59640709]
[1759426810257,0.8647617,119490.0,119480.0,1.19640709]
[1759426810652,1.30052334,119490.0,119480.0,1.19640709]
[1759426811254,1.32116832,119490.0,119480.0,1.19640709]
[1759426812162,1.32116832,119490.0,119480.0,0.54788917]
[1759426812163,0.54004832,119490.0,119480.0,0.54788917]
[1759426812350,1.29872832,119490.0,119480.0,0.87271548]
[1759426816462,0.86296668,119490.0,119480.0,1.59754179]
[1759426816760,0.86296668,119490.0,119480.0,1.27271548]
[1759426817358,0.86296668,119490.0,119480.0,1.28129895]
[1759426817558,0.86296668,119490.0,119480.0,1.27271548]
[1759426819655,0.02064498,119490.0,119480.0,1.59754179]
[1759426819859,0.08371521,119500.0,119490.0,0.1198917]
[1759426820055,0.40226414,119500.0,119490.0,1.19841479]
[1759426824166,0.38159521,119500.0,119490.0,1.19841479]
[1759426824961,0.81735685,119500.0,119490.0,1.19841479]
[1759426825163,0.51947685,119500.0,119490.0,1.19841479]
[1759426826457,7.521e-05,119500.0,119490.0,1.59841479]
[1759426826670,0.7586,119510.0,119500.0,0.1200048]
[1759426826864,0.0836257,119520.0,119510.0,0.1199978]
[1759426827072,0.55502734,119520.0,119510.0,0.45214047]
[1759426827263,0.55502734,119520.0,119510.0,0.77696678]
[1759426827569,0.55502734,119520.0,119510.0,0.86059458]
[1759426827869,0.55502734,119520.0,119510.0,0.87369458]
[1759426828073,0.54112734,119520.0,119510.0,0.87369458]
[1759426828968,0.55502734,119520.0,119510.0,0.86059458]
[1759426829571,0.55502734,119520.0,119510.0,0.87369458]
[1759426829963,0.54112734,119520.0,119510.0,0.87369458]
[1759426832969,1.29960734,119520.0,119510.0,0.87369458]
[1759426836171,0.0836208,119520.0,119510.0,1.59852089]
[1759426837074,0.0836208,119520.0,119510.0,1.27369458]
[1759426841384,0.51938244,119520.0,119510.0,1.27369458]
[1759426842476,0.54112244,119520.0,119510.0,0.87369458]
[1759426848091,0.51938244,119520.0,119510.0,1.19852089]
[1759426850385,0.00845247,119540.0,119520.0,0.0131]
[1759426850595,0.105348,119540.0,119530.0,1.15086678]
[1759426850889,1.28958964,119540.0,119530.0,1.15086678]
[1759426852687,1.28958964,119540.0,119530.0,1.23448058]
[1759426857985,0.43576164,119540.0,119530.0,1.23448058]
[1759426858183,0.43576164,119540.0,119530.0,1.29459302]
[1759426860890,0.0835991,119560.0,119540.0,0.03688]
[1759426861094,0.4694391,119560.0,119550.0,1.49173242]
[1759426861288,0.8418391,119560.0,119550.0,1.55980289]
[1759426861594,1.27760074,119560.0,119550.0,1.55980289]
[1759426864895,1.19400164,119560.0,119550.0,1.55980289]
[1759426865897,1.21638164,119560.0,119550.0,1.55980289]
[1759426870003,0.78062,119560.0,119550.0,1.55980289]
[1759426870299,1.21638164,119560.0,119550.0,1.55980289]
[1759426871097,1.21626164,119560.0,119550.0,1.55980289]
[1759426872394,1.19388164,119560.0,119550.0,1.55980289]
[1759426874200,1.19388164,119560.0,119550.0,1.55902377]
[1759426883102,1.19376164,119560.0,119550.0,1.55902377]
[1759426887709,0.04350075,119580.0,119570.0,0.1196358]
[1759426887904,0.15852023,119600.0,119590.0,0.0835718]
[1759426888208,0.81154721,119600.0,119590.0,1.1292953]
[1759426888405,1.25553845,119600.0,119590.0,0.80485855]
[1759426889825,0.50157985,119600.0,119590.0,1.1292953]
[1759426890004,1.6369991,119600.0,119590.0,1.1292953]
[1759426890206,1.6369991,119600.0,119590.0,1.4900953]
[1759426891312,1.6503191,119600.0,119590.0,1.4900953]
[1759426892309,1.6503191,119600.0,119590.0,0.8412218]
[1759426892509,1.6503191,119600.0,119590.0,1.23372902]
[1759426892710,1.6503191,119600.0,119590.0,1.55816577]
[1759426894314,1.62963164,119600.0,119590.0,1.55816577]
[1759426894515,1.62963164,119600.0,119590.0,1.23372902]
[1759426900017,1.19387,119600.0,119590.0,1.23372902]
[1759426900212,1.62963164,119600.0,119590.0,1.23372902]
[1759426901012,1.62963164,119600.0,119590.0,1.55816577]
[1759426901517,1.62963164,119600.0,119590.0,1.23372902]
[1759426902318,1.22963164,119600.0,119590.0,1.23372902]
[1759426902814,1.31319644,119600.0,119590.0,1.22037902]
[1759426905617,1.63763319,119600.0,119590.0,0.81237047]
[1759426905820,2.36206994,119600.0,119590.0,1.04603675]
[1759426906019,2.03763319,119600.0,119590.0,1.04603675]
[1759426906522,2.03763319,119600.0,119590.0,1.12960855]
[1759426906724,2.05816995,119600.0,119590.0,1.12960855]
[1759426908117,2.05816995,119600.0,119590.0,0.76880855]
[1759426909621,2.05816995,119600.0,119590.0,0.4443718]